Workbook

Sheet Values
E1: MULTIPLICATION OF MONEY
C2: INSTRUCTIONS
B4: Step 1 | C4: Enter the number to be used for multiplying money in this sheet. (A whole number ≥ 2 and ≤ 10).
C7: Maximum multiplier | G7: 10 | H7: NOTE: | I7: Choose 2 to 6 if you want to avoid times tables issues
B9: Step 2 | C9: Click on WorkSheet tab below. | I9: PRESS F9 for NEW WorkSheet
B11: Note | C11: If you hold down shift then click on the WorkSheet tab and the Answers tab, you will be able to print both the WorkSheet and the solutions.
C17: NOTES
C18: * Questions are asked in linear form and answered
C19: both in linear form and and in vertical algorithms

Sheet WorkSheet
A1: MULTIPLICATION OF MONEY
E2: =CONCATENATE("Worksheet ",Working!C1,Working!B1) -> Worksheet CLT-325
A3: Evaluate the following;
A4: =CONCATENATE(Working!A3,")") -> 1) | B4: =Working!$M3 -> What is 11 lots of $267.66 | D4: =CONCATENATE(Working!A23,")") -> 21) | E4: =Working!$M23 -> What is 5 lots of $641.91
A6: =CONCATENATE(Working!A4,")") -> 2) | B6: =Working!$M4 -> What is 11 lots of $203.15 | D6: =CONCATENATE(Working!A24,")") -> 22) | E6: =Working!$M24 -> What is 5 lots of $515.47
A8: =CONCATENATE(Working!A5,")") -> 3) | B8: =Working!$M5 -> What is 10 lots of $337.19 | D8: =CONCATENATE(Working!A25,")") -> 23) | E8: =Working!$M25 -> What is 7 lots of $385.77
A10: =CONCATENATE(Working!A6,")") -> 4) | B10: =Working!$M6 -> What is 2 lots of $984.20 | D10: =CONCATENATE(Working!A26,")") -> 24) | E10: =Working!$M26 -> What is 7 lots of $339.86
A12: =CONCATENATE(Working!A7,")") -> 5) | B12: =Working!$M7 -> What is 10 lots of $50.87 | D12: =CONCATENATE(Working!A27,")") -> 25) | E12: =Working!$M27 -> What is 2 lots of $425.11
A14: =CONCATENATE(Working!A8,")") -> 6) | B14: =Working!$M8 -> What is 6 lots of $286.45 | D14: =CONCATENATE(Working!A28,")") -> 26) | E14: =Working!$M28 -> What is 7 lots of $454.43
A16: =CONCATENATE(Working!A9,")") -> 7) | B16: =Working!$M9 -> What is 7 lots of $9.24 | D16: =CONCATENATE(Working!A29,")") -> 27) | E16: =Working!$M29 -> What is 7 lots of $859.98
A18: =CONCATENATE(Working!A10,")") -> 8) | B18: =Working!$M10 -> What is 7 lots of $824.06 | D18: =CONCATENATE(Working!A30,")") -> 28) | E18: =Working!$M30 -> What is 11 lots of $603.46
A20: =CONCATENATE(Working!A11,")") -> 9) | B20: =Working!$M11 -> What is 8 lots of $839.66 | D20: =CONCATENATE(Working!A31,")") -> 29) | E20: =Working!$M31 -> What is 7 lots of $133.46
A22: =CONCATENATE(Working!A12,")") -> 10) | B22: =Working!$M12 -> What is 10 lots of $887.45 | D22: =CONCATENATE(Working!A32,")") -> 30) | E22: =Working!$M32 -> What is 7 lots of $971.23
A24: =CONCATENATE(Working!A13,")") -> 11) | B24: =Working!$M13 -> What is 5 lots of $424.54 | D24: =CONCATENATE(Working!A33,")") -> 31) | E24: =Working!$M33 -> What is 5 lots of $720.06
A26: =CONCATENATE(Working!A14,")") -> 12) | B26: =Working!$M14 -> What is 5 lots of $134.16 | D26: =CONCATENATE(Working!A34,")") -> 32) | E26: =Working!$M34 -> What is 4 lots of $263.91
A28: =CONCATENATE(Working!A15,")") -> 13) | B28: =Working!$M15 -> What is 10 lots of $353.09 | D28: =CONCATENATE(Working!A35,")") -> 33) | E28: =Working!$M35 -> What is 11 lots of $665.80
A30: =CONCATENATE(Working!A16,")") -> 14) | B30: =Working!$M16 -> What is 6 lots of $765.29 | D30: =CONCATENATE(Working!A36,")") -> 34) | E30: =Working!$M36 -> What is 3 lots of $150.92
A32: =CONCATENATE(Working!A17,")") -> 15) | B32: =Working!$M17 -> What is 8 lots of $640.09 | D32: =CONCATENATE(Working!A37,")") -> 35) | E32: =Working!$M37 -> What is 6 lots of $62.13
A34: =CONCATENATE(Working!A18,")") -> 16) | B34: =Working!$M18 -> What is 7 lots of $863.94 | D34: =CONCATENATE(Working!A38,")") -> 36) | E34: =Working!$M38 -> What is 2 lots of $407.25
A36: =CONCATENATE(Working!A19,")") -> 17) | B36: =Working!$M19 -> What is 2 lots of $853.98 | D36: =CONCATENATE(Working!A39,")") -> 37) | E36: =Working!$M39 -> What is 11 lots of $56.29
A38: =CONCATENATE(Working!A20,")") -> 18) | B38: =Working!$M20 -> What is 8 lots of $276.72 | D38: =CONCATENATE(Working!A40,")") -> 38) | E38: =Working!$M40 -> What is 5 lots of $760.55
A40: =CONCATENATE(Working!A21,")") -> 19) | B40: =Working!$M21 -> What is 11 lots of $135.58 | D40: =CONCATENATE(Working!A41,")") -> 39) | E40: =Working!$M41 -> What is 2 lots of $473.23
A42: =CONCATENATE(Working!A22,")") -> 20) | B42: =Working!$M22 -> What is 5 lots of $533.35 | D42: =CONCATENATE(Working!A42,")") -> 40) | E42: =Working!$M42 -> What is 5 lots of $924.97

Sheet Answer Sheet
G1: MULTIPLICATION OF MONEY
J2: =CONCATENATE("Worksheet ",Working!C1,Working!B1) -> Worksheet CLT-325
A3: Evaluate the following;
A4: =CONCATENATE(Working!A3,")") -> 1) | B4: =Working!$D3 -> $267.66 | D4: =CONCATENATE(Working!A13,")") -> 11) | E4: =Working!$K13 -> $424.54 | G4: =CONCATENATE(Working!A23,")") -> 21) | H4: =Working!$K23 -> $641.91 | J4: =CONCATENATE(Working!A33,")") -> 31) | K4: =Working!$K33 -> $720.06
B5: =Working!$J3 -> ×11 | E5: =Working!$J13 -> ×5 | H5: =Working!$J23 -> ×5 | K5: =Working!$J33 -> ×5
A8: =CONCATENATE(Working!A4,")") -> 2) | B8: =Working!$K4 -> $203.15 | D8: =CONCATENATE(Working!A14,")") -> 12) | E8: =Working!$K14 -> $134.16 | G8: =CONCATENATE(Working!A24,")") -> 22) | H8: =Working!$K24 -> $515.47 | J8: =CONCATENATE(Working!A34,")") -> 32) | K8: =Working!$K34 -> $263.91
B9: =Working!$J4 -> ×11 | E9: =Working!$J14 -> ×5 | H9: =Working!$J24 -> ×5 | K9: =Working!$J34 -> ×4
A12: =CONCATENATE(Working!A5,")") -> 3) | B12: =Working!$K5 -> $337.19 | D12: =CONCATENATE(Working!A15,")") -> 13) | E12: =Working!$K15 -> $353.09 | G12: =CONCATENATE(Working!A25,")") -> 23) | H12: =Working!$K25 -> $385.77 | J12: =CONCATENATE(Working!A35,")") -> 33) | K12: =Working!$K35 -> $665.80
B13: =Working!$J5 -> ×10 | E13: =Working!$J15 -> ×10 | H13: =Working!$J25 -> ×7 | K13: =Working!$J35 -> ×11
A16: =CONCATENATE(Working!A6,")") -> 4) | B16: =Working!$K6 -> $984.20 | D16: =CONCATENATE(Working!A16,")") -> 14) | E16: =Working!$K16 -> $765.29 | G16: =CONCATENATE(Working!A26,")") -> 24) | H16: =Working!$K26 -> $339.86 | J16: =CONCATENATE(Working!A36,")") -> 34) | K16: =Working!$K36 -> $150.92
B17: =Working!$J6 -> ×2 | E17: =Working!$J16 -> ×6 | H17: =Working!$J26 -> ×7 | K17: =Working!$J36 -> ×3
A20: =CONCATENATE(Working!A7,")") -> 5) | B20: =Working!$K7 -> $50.87 | D20: =CONCATENATE(Working!A17,")") -> 15) | E20: =Working!$K17 -> $640.09 | G20: =CONCATENATE(Working!A27,")") -> 25) | H20: =Working!$K27 -> $425.11 | J20: =CONCATENATE(Working!A37,")") -> 35) | K20: =Working!$K37 -> $62.13
B21: =Working!$J7 -> ×10 | E21: =Working!$J17 -> ×8 | H21: =Working!$J27 -> ×2 | K21: =Working!$J37 -> ×6
A24: =CONCATENATE(Working!A8,")") -> 6) | B24: =Working!$K8 -> $286.45 | D24: =CONCATENATE(Working!A18,")") -> 16) | E24: =Working!$K18 -> $863.94 | G24: =CONCATENATE(Working!A28,")") -> 26) | H24: =Working!$K28 -> $454.43 | J24: =CONCATENATE(Working!A38,")") -> 36) | K24: =Working!$K38 -> $407.25
B25: =Working!$J8 -> ×6 | E25: =Working!J18 -> ×7 | H25: =Working!J28 -> ×7 | K25: =Working!J38 -> ×2
A28: =CONCATENATE(Working!A9,")") -> 7) | B28: =Working!$K9 -> $9.24 | D28: =CONCATENATE(Working!A19,")") -> 17) | E28: =Working!$K19 -> $853.98 | G28: =CONCATENATE(Working!A29,")") -> 27) | H28: =Working!$K29 -> $859.98 | J28: =CONCATENATE(Working!A39,")") -> 37) | K28: =Working!$K39 -> $56.29
B29: =Working!J9 -> ×7 | E29: =Working!J19 -> ×2 | H29: =Working!J29 -> ×7 | K29: =Working!J39 -> ×11
A32: =CONCATENATE(Working!A10,")") -> 8) | B32: =Working!$K10 -> $824.06 | D32: =CONCATENATE(Working!A20,")") -> 18) | E32: =Working!$K20 -> $276.72 | G32: =CONCATENATE(Working!A30,")") -> 28) | H32: =Working!$K30 -> $603.46 | J32: =CONCATENATE(Working!A40,")") -> 38) | K32: =Working!$K40 -> $760.55
B33: =Working!J10 -> ×7 | E33: =Working!J20 -> ×8 | H33: =Working!J30 -> ×11 | K33: =Working!J40 -> ×5
A36: =CONCATENATE(Working!A11,")") -> 9) | B36: =Working!$K11 -> $839.66 | D36: =CONCATENATE(Working!A21,")") -> 19) | E36: =Working!$K21 -> $135.58 | G36: =CONCATENATE(Working!A31,")") -> 29) | H36: =Working!$K31 -> $133.46 | J36: =CONCATENATE(Working!A41,")") -> 39) | K36: =Working!$K41 -> $473.23
B37: =Working!J11 -> ×8 | E37: =Working!J21 -> ×11 | H37: =Working!J31 -> ×7 | K37: =Working!J41 -> ×2
A40: =CONCATENATE(Working!A12,")") -> 10) | B40: =Working!$K12 -> $887.45 | D40: =CONCATENATE(Working!A22,")") -> 20) | E40: =Working!$K22 -> $533.35 | G40: =CONCATENATE(Working!A32,")") -> 30) | H40: =Working!$K32 -> $971.23 | J40: =CONCATENATE(Working!A42,")") -> 40) | K40: =Working!$K42 -> $924.97
B41: =Working!J12 -> ×10 | E41: =Working!J22 -> ×5 | H41: =Working!J32 -> ×7 | K41: =Working!J42 -> ×5

Sheet Answers
G1: MULTIPLICATION OF MONEY
G2: ANSWERS | J2: =CONCATENATE("Worksheet ",Working!C1,Working!B1) -> Worksheet CLT-325
A3: Evaluate the following;
A4: =CONCATENATE(Working!A3,")") -> 1) | B4: =Working!$D3 -> $267.66 | D4: =CONCATENATE(Working!A13,")") -> 11) | E4: =Working!$K13 -> $424.54 | G4: =CONCATENATE(Working!A23,")") -> 21) | H4: =Working!$K23 -> $641.91 | J4: =CONCATENATE(Working!A33,")") -> 31) | K4: =Working!$K33 -> $720.06
B5: =Working!$J3 -> ×11 | E5: =Working!$J13 -> ×5 | H5: =Working!$J23 -> ×5 | K5: =Working!$J33 -> ×5
B6: =Working!$G3 -> $2944.26 | E6: =Working!$G13 -> $2122.70 | H6: =Working!$G23 -> $3209.55 | K6: =Working!$G33 -> $3600.30
A8: =CONCATENATE(Working!A4,")") -> 2) | B8: =Working!$K4 -> $203.15 | D8: =CONCATENATE(Working!A14,")") -> 12) | E8: =Working!$K14 -> $134.16 | G8: =CONCATENATE(Working!A24,")") -> 22) | H8: =Working!$K24 -> $515.47 | J8: =CONCATENATE(Working!A34,")") -> 32) | K8: =Working!$K34 -> $263.91
B9: =Working!$J4 -> ×11 | E9: =Working!$J14 -> ×5 | H9: =Working!$J24 -> ×5 | K9: =Working!$J34 -> ×4
B10: =Working!$G4 -> $2234.65 | E10: =Working!$G14 -> $670.80 | H10: =Working!$G24 -> $2577.35 | K10: =Working!$G34 -> $1055.64
A12: =CONCATENATE(Working!A5,")") -> 3) | B12: =Working!$K5 -> $337.19 | D12: =CONCATENATE(Working!A15,")") -> 13) | E12: =Working!$K15 -> $353.09 | G12: =CONCATENATE(Working!A25,")") -> 23) | H12: =Working!$K25 -> $385.77 | J12: =CONCATENATE(Working!A35,")") -> 33) | K12: =Working!$K35 -> $665.80
B13: =Working!$J5 -> ×10 | E13: =Working!$J15 -> ×10 | H13: =Working!$J25 -> ×7 | K13: =Working!$J35 -> ×11
B14: =Working!$G5 -> $3371.90 | E14: =Working!$G15 -> $3530.90 | H14: =Working!$G25 -> $2700.39 | K14: =Working!$G35 -> $7323.80
A16: =CONCATENATE(Working!A6,")") -> 4) | B16: =Working!$K6 -> $984.20 | D16: =CONCATENATE(Working!A16,")") -> 14) | E16: =Working!$K16 -> $765.29 | G16: =CONCATENATE(Working!A26,")") -> 24) | H16: =Working!$K26 -> $339.86 | J16: =CONCATENATE(Working!A36,")") -> 34) | K16: =Working!$K36 -> $150.92
B17: =Working!$J6 -> ×2 | E17: =Working!$J16 -> ×6 | H17: =Working!$J26 -> ×7 | K17: =Working!$J36 -> ×3
B18: =Working!$G6 -> $1968.40 | E18: =Working!$G16 -> $4591.74 | H18: =Working!$G26 -> $2379.02 | K18: =Working!$G36 -> $452.76
A20: =CONCATENATE(Working!A7,")") -> 5) | B20: =Working!$K7 -> $50.87 | D20: =CONCATENATE(Working!A17,")") -> 15) | E20: =Working!$K17 -> $640.09 | G20: =CONCATENATE(Working!A27,")") -> 25) | H20: =Working!$K27 -> $425.11 | J20: =CONCATENATE(Working!A37,")") -> 35) | K20: =Working!$K37 -> $62.13
B21: =Working!$J7 -> ×10 | E21: =Working!$J17 -> ×8 | H21: =Working!$J27 -> ×2 | K21: =Working!$J37 -> ×6
B22: =Working!$G7 -> $508.70 | E22: =Working!$G17 -> $5120.72 | H22: =Working!$G27 -> $850.22 | K22: =Working!$G37 -> $372.78
A24: =CONCATENATE(Working!A8,")") -> 6) | B24: =Working!$K8 -> $286.45 | D24: =CONCATENATE(Working!A18,")") -> 16) | E24: =Working!$K18 -> $863.94 | G24: =CONCATENATE(Working!A28,")") -> 26) | H24: =Working!$K28 -> $454.43 | J24: =CONCATENATE(Working!A38,")") -> 36) | K24: =Working!$K38 -> $407.25
B25: =Working!$J8 -> ×6 | E25: =Working!J18 -> ×7 | H25: =Working!J28 -> ×7 | K25: =Working!J38 -> ×2
B26: =Working!$G8 -> $1718.70 | E26: =Working!G18 -> $6047.58 | H26: =Working!G28 -> $3181.01 | K26: =Working!G38 -> $814.50
A28: =CONCATENATE(Working!A9,")") -> 7) | B28: =Working!$K9 -> $9.24 | D28: =CONCATENATE(Working!A19,")") -> 17) | E28: =Working!$K19 -> $853.98 | G28: =CONCATENATE(Working!A29,")") -> 27) | H28: =Working!$K29 -> $859.98 | J28: =CONCATENATE(Working!A39,")") -> 37) | K28: =Working!$K39 -> $56.29
B29: =Working!J9 -> ×7 | E29: =Working!J19 -> ×2 | H29: =Working!J29 -> ×7 | K29: =Working!J39 -> ×11
B30: =Working!G9 -> $64.68 | E30: =Working!G19 -> $1707.96 | H30: =Working!G29 -> $6019.86 | K30: =Working!G39 -> $619.19
A32: =CONCATENATE(Working!A10,")") -> 8) | B32: =Working!$K10 -> $824.06 | D32: =CONCATENATE(Working!A20,")") -> 18) | E32: =Working!$K20 -> $276.72 | G32: =CONCATENATE(Working!A30,")") -> 28) | H32: =Working!$K30 -> $603.46 | J32: =CONCATENATE(Working!A40,")") -> 38) | K32: =Working!$K40 -> $760.55
B33: =Working!J10 -> ×7 | E33: =Working!J20 -> ×8 | H33: =Working!J30 -> ×11 | K33: =Working!J40 -> ×5
B34: =Working!G10 -> $5768.42 | E34: =Working!G20 -> $2213.76 | H34: =Working!G30 -> $6638.06 | K34: =Working!G40 -> $3802.75
A36: =CONCATENATE(Working!A11,")") -> 9) | B36: =Working!$K11 -> $839.66 | D36: =CONCATENATE(Working!A21,")") -> 19) | E36: =Working!$K21 -> $135.58 | G36: =CONCATENATE(Working!A31,")") -> 29) | H36: =Working!$K31 -> $133.46 | J36: =CONCATENATE(Working!A41,")") -> 39) | K36: =Working!$K41 -> $473.23
B37: =Working!J11 -> ×8 | E37: =Working!J21 -> ×11 | H37: =Working!J31 -> ×7 | K37: =Working!J41 -> ×2
B38: =Working!G11 -> $6717.28 | E38: =Working!G21 -> $1491.38 | H38: =Working!G31 -> $934.22 | K38: =Working!G41 -> $946.46
A40: =CONCATENATE(Working!A12,")") -> 10) | B40: =Working!$K12 -> $887.45 | D40: =CONCATENATE(Working!A22,")") -> 20) | E40: =Working!$K22 -> $533.35 | G40: =CONCATENATE(Working!A32,")") -> 30) | H40: =Working!$K32 -> $971.23 | J40: =CONCATENATE(Working!A42,")") -> 40) | K40: =Working!$K42 -> $924.97
B41: =Working!J12 -> ×10 | E41: =Working!J22 -> ×5 | H41: =Working!J32 -> ×7 | K41: =Working!J42 -> ×5
B42: =Working!G12 -> $8874.50 | E42: =Working!G22 -> $2666.75 | H42: =Working!G32 -> $6798.61 | K42: =Working!G42 -> $4624.85

Sheet Answers 2
A1: MULTIPLICATION OF MONEY
E2: =CONCATENATE("Worksheet ",Working!C1,Working!B1) -> Worksheet CLT-325
A3: Evaluate the following;
A4: =CONCATENATE(Working!A3,")") -> 1) | B4: =Working!$M3 -> What is 11 lots of $267.66 | D4: =CONCATENATE(Working!A23,")") -> 21) | E4: =Working!$M23 -> What is 5 lots of $641.91
B5: =Working!$N3 -> = 11 × $267.66 = $2944.26 | E5: =Working!$N23 -> = 5 × $641.91 = $3209.55
A6: =CONCATENATE(Working!A4,")") -> 2) | B6: =Working!$M4 -> What is 11 lots of $203.15 | D6: =CONCATENATE(Working!A24,")") -> 22) | E6: =Working!$M24 -> What is 5 lots of $515.47
B7: =Working!$N4 -> = 11 × $203.15 = $2234.65 | E7: =Working!$N24 -> = 5 × $515.47 = $2577.35
A8: =CONCATENATE(Working!A5,")") -> 3) | B8: =Working!$M5 -> What is 10 lots of $337.19 | D8: =CONCATENATE(Working!A25,")") -> 23) | E8: =Working!$M25 -> What is 7 lots of $385.77
B9: =Working!$N5 -> = 10 × $337.19 = $3371.90 | E9: =Working!$N25 -> = 7 × $385.77 = $2700.39
A10: =CONCATENATE(Working!A6,")") -> 4) | B10: =Working!$M6 -> What is 2 lots of $984.20 | D10: =CONCATENATE(Working!A26,")") -> 24) | E10: =Working!$M26 -> What is 7 lots of $339.86
B11: =Working!$N6 -> = 2 × $984.20 = $1968.40 | E11: =Working!$N26 -> = 7 × $339.86 = $2379.02
A12: =CONCATENATE(Working!A7,")") -> 5) | B12: =Working!$M7 -> What is 10 lots of $50.87 | D12: =CONCATENATE(Working!A27,")") -> 25) | E12: =Working!$M27 -> What is 2 lots of $425.11
B13: =Working!$N7 -> = 10 × $50.87 = $508.70 | E13: =Working!$N27 -> = 2 × $425.11 = $850.22
A14: =CONCATENATE(Working!A8,")") -> 6) | B14: =Working!$M8 -> What is 6 lots of $286.45 | D14: =CONCATENATE(Working!A28,")") -> 26) | E14: =Working!$M28 -> What is 7 lots of $454.43
B15: =Working!$N8 -> = 6 × $286.45 = $1718.70 | E15: =Working!$N28 -> = 7 × $454.43 = $3181.01
A16: =CONCATENATE(Working!A9,")") -> 7) | B16: =Working!$M9 -> What is 7 lots of $9.24 | D16: =CONCATENATE(Working!A29,")") -> 27) | E16: =Working!$M29 -> What is 7 lots of $859.98
B17: =Working!$N9 -> = 7 × $9.24 = $64.68 | E17: =Working!$N29 -> = 7 × $859.98 = $6019.86
A18: =CONCATENATE(Working!A10,")") -> 8) | B18: =Working!$M10 -> What is 7 lots of $824.06 | D18: =CONCATENATE(Working!A30,")") -> 28) | E18: =Working!$M30 -> What is 11 lots of $603.46
B19: =Working!$N10 -> = 7 × $824.06 = $5768.42 | E19: =Working!$N30 -> = 11 × $603.46 = $6638.06
A20: =CONCATENATE(Working!A11,")") -> 9) | B20: =Working!$M11 -> What is 8 lots of $839.66 | D20: =CONCATENATE(Working!A31,")") -> 29) | E20: =Working!$M31 -> What is 7 lots of $133.46
B21: =Working!$N11 -> = 8 × $839.66 = $6717.28 | E21: =Working!$N31 -> = 7 × $133.46 = $934.22
A22: =CONCATENATE(Working!A12,")") -> 10) | B22: =Working!$M12 -> What is 10 lots of $887.45 | D22: =CONCATENATE(Working!A32,")") -> 30) | E22: =Working!$M32 -> What is 7 lots of $971.23
B23: =Working!$N12 -> = 10 × $887.45 = $8874.50 | E23: =Working!$N32 -> = 7 × $971.23 = $6798.61
A24: =CONCATENATE(Working!A13,")") -> 11) | B24: =Working!$M13 -> What is 5 lots of $424.54 | D24: =CONCATENATE(Working!A33,")") -> 31) | E24: =Working!$M33 -> What is 5 lots of $720.06
B25: =Working!$N13 -> = 5 × $424.54 = $2122.70 | E25: =Working!$N33 -> = 5 × $720.06 = $3600.30
A26: =CONCATENATE(Working!A14,")") -> 12) | B26: =Working!$M14 -> What is 5 lots of $134.16 | D26: =CONCATENATE(Working!A34,")") -> 32) | E26: =Working!$M34 -> What is 4 lots of $263.91
B27: =Working!$N14 -> = 5 × $134.16 = $670.80 | E27: =Working!$N34 -> = 4 × $263.91 = $1055.64
A28: =CONCATENATE(Working!A15,")") -> 13) | B28: =Working!$M15 -> What is 10 lots of $353.09 | D28: =CONCATENATE(Working!A35,")") -> 33) | E28: =Working!$M35 -> What is 11 lots of $665.80
B29: =Working!$N15 -> = 10 × $353.09 = $3530.90 | E29: =Working!$N35 -> = 11 × $665.80 = $7323.80
A30: =CONCATENATE(Working!A16,")") -> 14) | B30: =Working!$M16 -> What is 6 lots of $765.29 | D30: =CONCATENATE(Working!A36,")") -> 34) | E30: =Working!$M36 -> What is 3 lots of $150.92
B31: =Working!$N16 -> = 6 × $765.29 = $4591.74 | E31: =Working!$N36 -> = 3 × $150.92 = $452.76
A32: =CONCATENATE(Working!A17,")") -> 15) | B32: =Working!$M17 -> What is 8 lots of $640.09 | D32: =CONCATENATE(Working!A37,")") -> 35) | E32: =Working!$M37 -> What is 6 lots of $62.13
B33: =Working!$N17 -> = 8 × $640.09 = $5120.72 | E33: =Working!$N37 -> = 6 × $62.13 = $372.78
A34: =CONCATENATE(Working!A18,")") -> 16) | B34: =Working!$M18 -> What is 7 lots of $863.94 | D34: =CONCATENATE(Working!A38,")") -> 36) | E34: =Working!$M38 -> What is 2 lots of $407.25
B35: =Working!$N18 -> = 7 × $863.94 = $6047.58 | E35: =Working!$N38 -> = 2 × $407.25 = $814.50
A36: =CONCATENATE(Working!A19,")") -> 17) | B36: =Working!$M19 -> What is 2 lots of $853.98 | D36: =CONCATENATE(Working!A39,")") -> 37) | E36: =Working!$M39 -> What is 11 lots of $56.29
B37: =Working!$N19 -> = 2 × $853.98 = $1707.96 | E37: =Working!$N39 -> = 11 × $56.29 = $619.19
A38: =CONCATENATE(Working!A20,")") -> 18) | B38: =Working!$M20 -> What is 8 lots of $276.72 | D38: =CONCATENATE(Working!A40,")") -> 38) | E38: =Working!$M40 -> What is 5 lots of $760.55
B39: =Working!$N20 -> = 8 × $276.72 = $2213.76 | E39: =Working!$N40 -> = 5 × $760.55 = $3802.75
A40: =CONCATENATE(Working!A21,")") -> 19) | B40: =Working!$M21 -> What is 11 lots of $135.58 | D40: =CONCATENATE(Working!A41,")") -> 39) | E40: =Working!$M41 -> What is 2 lots of $473.23
B41: =Working!$N21 -> = 11 × $135.58 = $1491.38 | E41: =Working!$N41 -> = 2 × $473.23 = $946.46
A42: =CONCATENATE(Working!A22,")") -> 20) | B42: =Working!$M22 -> What is 5 lots of $533.35 | D42: =CONCATENATE(Working!A42,")") -> 40) | E42: =Working!$M42 -> What is 5 lots of $924.97
B43: =Working!$N22 -> = 5 × $533.35 = $2666.75 | E43: =Working!$N42 -> = 5 × $924.97 = $4624.85

Sheet Working (hidden)
A1: =INT(900*RAND()+100) -> 325 | B1: =TEXT(1,A1) -> 325 | C1: CLT- | D1: =" What is " -> What is | E1: =" lots of " -> lots of | G1: Type | H1: ×
C2: Amount | E2: Multiplier | H2: Type | M2: Question
A3: 1 | C3: =RANDBETWEEN(20,99999)/100 -> 267.66 | D3: =IF(INT(C3)=C3,CONCATENATE("$",C3,".00"),IF(INT(10*C3)=10*C3,CONCATENATE("$",C3,"0"),CONCATENATE("$",C3))) -> $267.66 | E3: =INT(Values!$G$7*RAND()+2) -> 11 | F3: =C3*E3 -> 2944.26 | G3: =IF(INT(F3)=F3,CONCATENATE("$",F3,".00"),IF(INT(10*F3)=10*F3,CONCATENATE("$",F3,"0"),CONCATENATE("$",F3))) -> $2944.26 | H3: =$H$1 -> × | I3: =CONCATENATE(" ",H3," ") -> × | J3: =CONCATENATE(H3,E3) -> ×11 | K3: =D3 -> $267.66 | M3: =CONCATENATE($D$1,E3,$E$1,D3) -> What is 11 lots of $267.66 | N3: =CONCATENATE(" = ",E3,I3,D3," = ",G3) -> = 11 × $267.66 = $2944.26
A4: 2 | C4: =RANDBETWEEN(20,99999)/100 -> 203.15 | D4: =IF(INT(C4)=C4,CONCATENATE("$",C4,".00"),IF(INT(10*C4)=10*C4,CONCATENATE("$",C4,"0"),CONCATENATE("$",C4))) -> $203.15 | E4: =INT(Values!$G$7*RAND()+2) -> 11 | F4: =C4*E4 -> 2234.65 | G4: =IF(INT(F4)=F4,CONCATENATE("$",F4,".00"),IF(INT(10*F4)=10*F4,CONCATENATE("$",F4,"0"),CONCATENATE("$",F4))) -> $2234.65 | H4: × | I4: =CONCATENATE(" ",H4," ") -> × | J4: =CONCATENATE(H4,E4) -> ×11 | K4: =D4 -> $203.15 | M4: =CONCATENATE($D$1,E4,$E$1,D4) -> What is 11 lots of $203.15 | N4: =CONCATENATE(" = ",E4,I4,D4," = ",G4) -> = 11 × $203.15 = $2234.65
A5: 3 | C5: 337.19 | D5: =IF(INT(C5)=C5,CONCATENATE("$",C5,".00"),IF(INT(10*C5)=10*C5,CONCATENATE("$",C5,"0"),CONCATENATE("$",C5))) -> $337.19 | E5: =INT(Values!$G$7*RAND()+2) -> 10 | F5: =C5*E5 -> 3371.9 | G5: $3371.90 | H5: × | I5: × | J5: ×10 | K5: $337.19 | M5: What is 10 lots of $337.19 | N5: = 10 × $337.19 = $3371.90
A6: 4 | C6: 984.2 | D6: =IF(INT(C6)=C6,CONCATENATE("$",C6,".00"),IF(INT(10*C6)=10*C6,CONCATENATE("$",C6,"0"),CONCATENATE("$",C6))) -> $984.20 | E6: =INT(Values!$G$7*RAND()+2) -> 2 | F6: =C6*E6 -> 1968.4 | G6: $1968.40 | H6: × | I6: × | J6: ×2 | K6: $984.20 | M6: What is 2 lots of $984.20 | N6: = 2 × $984.20 = $1968.40
A7: 5 | C7: 50.87 | D7: =IF(INT(C7)=C7,CONCATENATE("$",C7,".00"),IF(INT(10*C7)=10*C7,CONCATENATE("$",C7,"0"),CONCATENATE("$",C7))) -> $50.87 | E7: =INT(Values!$G$7*RAND()+2) -> 10 | F7: =C7*E7 -> 508.7 | G7: $508.70 | H7: × | I7: × | J7: ×10 | K7: $50.87 | M7: What is 10 lots of $50.87 | N7: = 10 × $50.87 = $508.70
A8: 6 | C8: 286.45 | D8: =IF(INT(C8)=C8,CONCATENATE("$",C8,".00"),IF(INT(10*C8)=10*C8,CONCATENATE("$",C8,"0"),CONCATENATE("$",C8))) -> $286.45 | E8: =INT(Values!$G$7*RAND()+2) -> 6 | F8: =C8*E8 -> 1718.7 | G8: $1718.70 | H8: × | I8: × | J8: ×6 | K8: $286.45 | M8: What is 6 lots of $286.45 | N8: = 6 × $286.45 = $1718.70
A9: 7 | C9: 9.24 | D9: =IF(INT(C9)=C9,CONCATENATE("$",C9,".00"),IF(INT(10*C9)=10*C9,CONCATENATE("$",C9,"0"),CONCATENATE("$",C9))) -> $9.24 | E9: =INT(Values!$G$7*RAND()+2) -> 7 | F9: =C9*E9 -> 64.68 | G9: $64.68 | H9: × | I9: × | J9: ×7 | K9: $9.24 | M9: What is 7 lots of $9.24 | N9: = 7 × $9.24 = $64.68
A10: 8 | C10: 824.06 | D10: =IF(INT(C10)=C10,CONCATENATE("$",C10,".00"),IF(INT(10*C10)=10*C10,CONCATENATE("$",C10,"0"),CONCATENATE("$",C10))) -> $824.06 | E10: =INT(Values!$G$7*RAND()+2) -> 7 | F10: =C10*E10 -> 5768.42 | G10: $5768.42 | H10: × | I10: × | J10: ×7 | K10: $824.06 | M10: What is 7 lots of $824.06 | N10: = 7 × $824.06 = $5768.42
A11: 9 | C11: 839.66 | D11: =IF(INT(C11)=C11,CONCATENATE("$",C11,".00"),IF(INT(10*C11)=10*C11,CONCATENATE("$",C11,"0"),CONCATENATE("$",C11))) -> $839.66 | E11: =INT(Values!$G$7*RAND()+2) -> 8 | F11: =C11*E11 -> 6717.28 | G11: $6717.28 | H11: × | I11: × | J11: ×8 | K11: $839.66 | M11: What is 8 lots of $839.66 | N11: = 8 × $839.66 = $6717.28
A12: 10 | C12: 887.45 | D12: =IF(INT(C12)=C12,CONCATENATE("$",C12,".00"),IF(INT(10*C12)=10*C12,CONCATENATE("$",C12,"0"),CONCATENATE("$",C12))) -> $887.45 | E12: =INT(Values!$G$7*RAND()+2) -> 10 | F12: =C12*E12 -> 8874.5 | G12: $8874.50 | H12: × | I12: × | J12: ×10 | K12: $887.45 | M12: What is 10 lots of $887.45 | N12: = 10 × $887.45 = $8874.50
A13: 11 | C13: 424.54 | D13: =IF(INT(C13)=C13,CONCATENATE("$",C13,".00"),IF(INT(10*C13)=10*C13,CONCATENATE("$",C13,"0"),CONCATENATE("$",C13))) -> $424.54 | E13: =INT(Values!$G$7*RAND()+2) -> 5 | F13: =C13*E13 -> 2122.7 | G13: $2122.70 | H13: × | I13: × | J13: ×5 | K13: $424.54 | M13: What is 5 lots of $424.54 | N13: = 5 × $424.54 = $2122.70
A14: 12 | C14: 134.16 | D14: =IF(INT(C14)=C14,CONCATENATE("$",C14,".00"),IF(INT(10*C14)=10*C14,CONCATENATE("$",C14,"0"),CONCATENATE("$",C14))) -> $134.16 | E14: =INT(Values!$G$7*RAND()+2) -> 5 | F14: =C14*E14 -> 670.8 | G14: $670.80 | H14: × | I14: × | J14: ×5 | K14: $134.16 | M14: What is 5 lots of $134.16 | N14: = 5 × $134.16 = $670.80
A15: 13 | C15: 353.09 | D15: =IF(INT(C15)=C15,CONCATENATE("$",C15,".00"),IF(INT(10*C15)=10*C15,CONCATENATE("$",C15,"0"),CONCATENATE("$",C15))) -> $353.09 | E15: =INT(Values!$G$7*RAND()+2) -> 10 | F15: =C15*E15 -> 3530.9 | G15: $3530.90 | H15: × | I15: × | J15: ×10 | K15: $353.09 | M15: What is 10 lots of $353.09 | N15: = 10 × $353.09 = $3530.90
A16: 14 | C16: 765.29 | D16: =IF(INT(C16)=C16,CONCATENATE("$",C16,".00"),IF(INT(10*C16)=10*C16,CONCATENATE("$",C16,"0"),CONCATENATE("$",C16))) -> $765.29 | E16: =INT(Values!$G$7*RAND()+2) -> 6 | F16: =C16*E16 -> 4591.74 | G16: $4591.74 | H16: × | I16: × | J16: ×6 | K16: $765.29 | M16: What is 6 lots of $765.29 | N16: = 6 × $765.29 = $4591.74
A17: 15 | C17: 640.09 | D17: =IF(INT(C17)=C17,CONCATENATE("$",C17,".00"),IF(INT(10*C17)=10*C17,CONCATENATE("$",C17,"0"),CONCATENATE("$",C17))) -> $640.09 | E17: =INT(Values!$G$7*RAND()+2) -> 8 | F17: =C17*E17 -> 5120.72 | G17: $5120.72 | H17: × | I17: × | J17: ×8 | K17: $640.09 | M17: What is 8 lots of $640.09 | N17: = 8 × $640.09 = $5120.72
A18: 16 | C18: 863.94 | D18: =IF(INT(C18)=C18,CONCATENATE("$",C18,".00"),IF(INT(10*C18)=10*C18,CONCATENATE("$",C18,"0"),CONCATENATE("$",C18))) -> $863.94 | E18: =INT(Values!$G$7*RAND()+2) -> 7 | F18: =C18*E18 -> 6047.58 | G18: $6047.58 | H18: × | I18: × | J18: ×7 | K18: $863.94 | M18: What is 7 lots of $863.94 | N18: = 7 × $863.94 = $6047.58
A19: 17 | C19: 853.98 | D19: =IF(INT(C19)=C19,CONCATENATE("$",C19,".00"),IF(INT(10*C19)=10*C19,CONCATENATE("$",C19,"0"),CONCATENATE("$",C19))) -> $853.98 | E19: =INT(Values!$G$7*RAND()+2) -> 2 | F19: =C19*E19 -> 1707.96 | G19: $1707.96 | H19: × | I19: × | J19: ×2 | K19: $853.98 | M19: What is 2 lots of $853.98 | N19: = 2 × $853.98 = $1707.96
A20: 18 | C20: 276.72 | D20: =IF(INT(C20)=C20,CONCATENATE("$",C20,".00"),IF(INT(10*C20)=10*C20,CONCATENATE("$",C20,"0"),CONCATENATE("$",C20))) -> $276.72 | E20: =INT(Values!$G$7*RAND()+2) -> 8 | F20: =C20*E20 -> 2213.76 | G20: $2213.76 | H20: × | I20: × | J20: ×8 | K20: $276.72 | M20: What is 8 lots of $276.72 | N20: = 8 × $276.72 = $2213.76
A21: 19 | C21: 135.58 | D21: =IF(INT(C21)=C21,CONCATENATE("$",C21,".00"),IF(INT(10*C21)=10*C21,CONCATENATE("$",C21,"0"),CONCATENATE("$",C21))) -> $135.58 | E21: =INT(Values!$G$7*RAND()+2) -> 11 | F21: =C21*E21 -> 1491.38 | G21: $1491.38 | H21: × | I21: × | J21: ×11 | K21: $135.58 | M21: What is 11 lots of $135.58 | N21: = 11 × $135.58 = $1491.38
A22: 20 | C22: 533.35 | D22: =IF(INT(C22)=C22,CONCATENATE("$",C22,".00"),IF(INT(10*C22)=10*C22,CONCATENATE("$",C22,"0"),CONCATENATE("$",C22))) -> $533.35 | E22: =INT(Values!$G$7*RAND()+2) -> 5 | F22: =C22*E22 -> 2666.75 | G22: $2666.75 | H22: × | I22: × | J22: ×5 | K22: $533.35 | M22: What is 5 lots of $533.35 | N22: = 5 × $533.35 = $2666.75
A23: 21 | C23: 641.91 | D23: =IF(INT(C23)=C23,CONCATENATE("$",C23,".00"),IF(INT(10*C23)=10*C23,CONCATENATE("$",C23,"0"),CONCATENATE("$",C23))) -> $641.91 | E23: =INT(Values!$G$7*RAND()+2) -> 5 | F23: =C23*E23 -> 3209.55 | G23: $3209.55 | H23: × | I23: × | J23: ×5 | K23: $641.91 | M23: What is 5 lots of $641.91 | N23: = 5 × $641.91 = $3209.55
A24: 22 | C24: 515.47 | D24: =IF(INT(C24)=C24,CONCATENATE("$",C24,".00"),IF(INT(10*C24)=10*C24,CONCATENATE("$",C24,"0"),CONCATENATE("$",C24))) -> $515.47 | E24: =INT(Values!$G$7*RAND()+2) -> 5 | F24: =C24*E24 -> 2577.35 | G24: $2577.35 | H24: × | I24: × | J24: ×5 | K24: $515.47 | M24: What is 5 lots of $515.47 | N24: = 5 × $515.47 = $2577.35
A25: 23 | C25: 385.77 | D25: =IF(INT(C25)=C25,CONCATENATE("$",C25,".00"),IF(INT(10*C25)=10*C25,CONCATENATE("$",C25,"0"),CONCATENATE("$",C25))) -> $385.77 | E25: =INT(Values!$G$7*RAND()+2) -> 7 | F25: =C25*E25 -> 2700.39 | G25: $2700.39 | H25: × | I25: × | J25: ×7 | K25: $385.77 | M25: What is 7 lots of $385.77 | N25: = 7 × $385.77 = $2700.39
A26: 24 | C26: 339.86 | D26: =IF(INT(C26)=C26,CONCATENATE("$",C26,".00"),IF(INT(10*C26)=10*C26,CONCATENATE("$",C26,"0"),CONCATENATE("$",C26))) -> $339.86 | E26: =INT(Values!$G$7*RAND()+2) -> 7 | F26: =C26*E26 -> 2379.02 | G26: $2379.02 | H26: × | I26: × | J26: ×7 | K26: $339.86 | M26: What is 7 lots of $339.86 | N26: = 7 × $339.86 = $2379.02
A27: 25 | C27: 425.11 | D27: =IF(INT(C27)=C27,CONCATENATE("$",C27,".00"),IF(INT(10*C27)=10*C27,CONCATENATE("$",C27,"0"),CONCATENATE("$",C27))) -> $425.11 | E27: =INT(Values!$G$7*RAND()+2) -> 2 | F27: =C27*E27 -> 850.22 | G27: $850.22 | H27: × | I27: × | J27: ×2 | K27: $425.11 | M27: What is 2 lots of $425.11 | N27: = 2 × $425.11 = $850.22
A28: 26 | C28: 454.43 | D28: =IF(INT(C28)=C28,CONCATENATE("$",C28,".00"),IF(INT(10*C28)=10*C28,CONCATENATE("$",C28,"0"),CONCATENATE("$",C28))) -> $454.43 | E28: =INT(Values!$G$7*RAND()+2) -> 7 | F28: =C28*E28 -> 3181.01 | G28: $3181.01 | H28: × | I28: × | J28: ×7 | K28: $454.43 | M28: What is 7 lots of $454.43 | N28: = 7 × $454.43 = $3181.01
A29: 27 | C29: 859.98 | D29: =IF(INT(C29)=C29,CONCATENATE("$",C29,".00"),IF(INT(10*C29)=10*C29,CONCATENATE("$",C29,"0"),CONCATENATE("$",C29))) -> $859.98 | E29: =INT(Values!$G$7*RAND()+2) -> 7 | F29: =C29*E29 -> 6019.86 | G29: $6019.86 | H29: × | I29: × | J29: ×7 | K29: $859.98 | M29: What is 7 lots of $859.98 | N29: = 7 × $859.98 = $6019.86
A30: 28 | C30: 603.46 | D30: =IF(INT(C30)=C30,CONCATENATE("$",C30,".00"),IF(INT(10*C30)=10*C30,CONCATENATE("$",C30,"0"),CONCATENATE("$",C30))) -> $603.46 | E30: =INT(Values!$G$7*RAND()+2) -> 11 | F30: =C30*E30 -> 6638.06 | G30: $6638.06 | H30: × | I30: × | J30: ×11 | K30: $603.46 | M30: What is 11 lots of $603.46 | N30: = 11 × $603.46 = $6638.06
A31: 29 | C31: 133.46 | D31: =IF(INT(C31)=C31,CONCATENATE("$",C31,".00"),IF(INT(10*C31)=10*C31,CONCATENATE("$",C31,"0"),CONCATENATE("$",C31))) -> $133.46 | E31: =INT(Values!$G$7*RAND()+2) -> 7 | F31: =C31*E31 -> 934.22 | G31: $934.22 | H31: × | I31: × | J31: ×7 | K31: $133.46 | M31: What is 7 lots of $133.46 | N31: = 7 × $133.46 = $934.22
A32: 30 | C32: 971.23 | D32: =IF(INT(C32)=C32,CONCATENATE("$",C32,".00"),IF(INT(10*C32)=10*C32,CONCATENATE("$",C32,"0"),CONCATENATE("$",C32))) -> $971.23 | E32: =INT(Values!$G$7*RAND()+2) -> 7 | F32: =C32*E32 -> 6798.61 | G32: $6798.61 | H32: × | I32: × | J32: ×7 | K32: $971.23 | M32: What is 7 lots of $971.23 | N32: = 7 × $971.23 = $6798.61
A33: 31 | C33: 720.06 | D33: =IF(INT(C33)=C33,CONCATENATE("$",C33,".00"),IF(INT(10*C33)=10*C33,CONCATENATE("$",C33,"0"),CONCATENATE("$",C33))) -> $720.06 | E33: =INT(Values!$G$7*RAND()+2) -> 5 | F33: =C33*E33 -> 3600.3 | G33: $3600.30 | H33: × | I33: × | J33: ×5 | K33: $720.06 | M33: What is 5 lots of $720.06 | N33: = 5 × $720.06 = $3600.30
A34: 32 | C34: 263.91 | D34: =IF(INT(C34)=C34,CONCATENATE("$",C34,".00"),IF(INT(10*C34)=10*C34,CONCATENATE("$",C34,"0"),CONCATENATE("$",C34))) -> $263.91 | E34: =INT(Values!$G$7*RAND()+2) -> 4 | F34: =C34*E34 -> 1055.64 | G34: $1055.64 | H34: × | I34: × | J34: ×4 | K34: $263.91 | M34: What is 4 lots of $263.91 | N34: = 4 × $263.91 = $1055.64
A35: 33 | C35: 665.8 | D35: =IF(INT(C35)=C35,CONCATENATE("$",C35,".00"),IF(INT(10*C35)=10*C35,CONCATENATE("$",C35,"0"),CONCATENATE("$",C35))) -> $665.80 | E35: =INT(Values!$G$7*RAND()+2) -> 11 | F35: =C35*E35 -> 7323.8 | G35: $7323.80 | H35: × | I35: × | J35: ×11 | K35: $665.80 | M35: What is 11 lots of $665.80 | N35: = 11 × $665.80 = $7323.80
A36: 34 | C36: 150.92 | D36: =IF(INT(C36)=C36,CONCATENATE("$",C36,".00"),IF(INT(10*C36)=10*C36,CONCATENATE("$",C36,"0"),CONCATENATE("$",C36))) -> $150.92 | E36: =INT(Values!$G$7*RAND()+2) -> 3 | F36: =C36*E36 -> 452.76 | G36: $452.76 | H36: × | I36: × | J36: ×3 | K36: $150.92 | M36: What is 3 lots of $150.92 | N36: = 3 × $150.92 = $452.76
A37: 35 | C37: 62.13 | D37: =IF(INT(C37)=C37,CONCATENATE("$",C37,".00"),IF(INT(10*C37)=10*C37,CONCATENATE("$",C37,"0"),CONCATENATE("$",C37))) -> $62.13 | E37: =INT(Values!$G$7*RAND()+2) -> 6 | F37: =C37*E37 -> 372.78 | G37: $372.78 | H37: × | I37: × | J37: ×6 | K37: $62.13 | M37: What is 6 lots of $62.13 | N37: = 6 × $62.13 = $372.78
A38: 36 | C38: 407.25 | D38: =IF(INT(C38)=C38,CONCATENATE("$",C38,".00"),IF(INT(10*C38)=10*C38,CONCATENATE("$",C38,"0"),CONCATENATE("$",C38))) -> $407.25 | E38: =INT(Values!$G$7*RAND()+2) -> 2 | F38: =C38*E38 -> 814.5 | G38: $814.50 | H38: × | I38: × | J38: ×2 | K38: $407.25 | M38: What is 2 lots of $407.25 | N38: = 2 × $407.25 = $814.50
A39: 37 | C39: 56.29 | D39: =IF(INT(C39)=C39,CONCATENATE("$",C39,".00"),IF(INT(10*C39)=10*C39,CONCATENATE("$",C39,"0"),CONCATENATE("$",C39))) -> $56.29 | E39: =INT(Values!$G$7*RAND()+2) -> 11 | F39: =C39*E39 -> 619.19 | G39: $619.19 | H39: × | I39: × | J39: ×11 | K39: $56.29 | M39: What is 11 lots of $56.29 | N39: = 11 × $56.29 = $619.19
A40: 38 | C40: 760.55 | D40: =IF(INT(C40)=C40,CONCATENATE("$",C40,".00"),IF(INT(10*C40)=10*C40,CONCATENATE("$",C40,"0"),CONCATENATE("$",C40))) -> $760.55 | E40: =INT(Values!$G$7*RAND()+2) -> 5 | F40: =C40*E40 -> 3802.75 | G40: $3802.75 | H40: × | I40: × | J40: ×5 | K40: $760.55 | M40: What is 5 lots of $760.55 | N40: = 5 × $760.55 = $3802.75
A41: 39 | C41: 473.23 | D41: =IF(INT(C41)=C41,CONCATENATE("$",C41,".00"),IF(INT(10*C41)=10*C41,CONCATENATE("$",C41,"0"),CONCATENATE("$",C41))) -> $473.23 | E41: =INT(Values!$G$7*RAND()+2) -> 2 | F41: =C41*E41 -> 946.46 | G41: $946.46 | H41: × | I41: × | J41: ×2 | K41: $473.23 | M41: What is 2 lots of $473.23 | N41: = 2 × $473.23 = $946.46
A42: 40 | C42: 924.97 | D42: =IF(INT(C42)=C42,CONCATENATE("$",C42,".00"),IF(INT(10*C42)=10*C42,CONCATENATE("$",C42,"0"),CONCATENATE("$",C42))) -> $924.97 | E42: =INT(Values!$G$7*RAND()+2) -> 5 | F42: =C42*E42 -> 4624.85 | G42: $4624.85 | H42: × | I42: × | J42: ×5 | K42: $924.97 | M42: What is 5 lots of $924.97 | N42: = 5 × $924.97 = $4624.85
